Cogmind - Beta 16 @@@ ROGUE MODE // 2025.11.20 @ 08:47:57 Player: Mozco Result: Destroyed by Executioner with Helical Railgun Performance ------------- Evolutions (8) 4000 Regions Visited (26) 5200 Robots Destroyed (325) 1625 Value Destroyed (15616) 15616 Prototype IDs (66) 1320 Alien Tech Used (3) 600 Bonus (10779) 10779 TOTAL SCORE: 39140 Bonus ------- High Alert Combat Kills 2439 Follower Combat Kills 1569 Met Data Miner 300 Met Zhirov 300 Met Warlord at Base 500 MAIN.C Attacked Warlord 500 Warlord Defense Kills 5442 Friendly Fire -271 Cogmind --------- Core Integrity 0/1450 Matter 300/300 Energy 786/850 System Corruption 0% Temperature Cool (0) Movement Rolling (240) Ox10 Location -2/Research Parts ------- > --- POWER (1) -------- Quantum Reactor > --- PROPULSION (2) --- Armored Wheel > --- UTILITY (19) ----- Huge Storage Unit Advanced Energy Well Long-range Terrain Scanner Advanced Terrain Scan Processor Improved Target Analyzer Improved Target Analyzer Advanced Shield Generator Improved System Guard Advanced Corruption Screen > --- WEAPON (2) ------- Compact Mass Driver Enhanced Hardcell Cannon > --- INVENTORY (25) --- Particle Reactor Quantum Reactor Light Quantum Reactor Heavy Wave Gun Heavy Wave Gun Heavy Wave Gun Advanced KE Penetrator Enhanced Hardcell Cannon Shock Maul Peak State ------------ > --- POWER ------------ Particle Reactor > --- PROPULSION ------- Centrium Wheel Centrium Wheel > --- UTILITY ---------- Huge Storage Unit Advanced Launcher Guidance Computer Advanced Target Analyzer Advanced Target Analyzer Centrium Light Armor Plating System Mapper System Shield Authchip [Propulsion] Advanced Trap Extractor Wardrone Bay > --- WEAPON ----------- Linear Accelerator Linear Accelerator > --- INVENTORY -------- Antimatter Reactor Vortex Chain Reactor Centrium Wheel Coolant Network Advanced Energy Well Improved Matter Compressor Advanced Signal Interpreter Advanced Terrain Scan Processor Centrium Medium Armor Plating Experimental Shock Absorption System Advanced Component Analysis Suite Advanced Field Recycling Unit Transdimensional Reconstructor Hypervelocity Railgun Hypervelocity Mass Driver Linear Accelerator Linear Accelerator Linear Accelerator Vortex Catalyst Activator Chain Missile Launcher Advanced Datajack [Rating: 216] Favorites ----------- Power Cold Fusion Reactor Engine Improved Deuterium Engine Power Core Fission Core Reactor Cold Fusion Reactor Propulsion Wheel Wheel Wheel Utility Advanced Target Analyzer Device Advanced Sensor Array Storage Huge Storage Unit Processor Advanced Target Analyzer Hackware System Mapper Protection Experimental Power Shielding Weapon Hypervelocity Coil Gun Energy Gun Shock Rifle Energy Cannon Disruptor Cannon Ballistic Gun Hypervelocity Coil Gun Ballistic Cannon Linear Accelerator Launcher Tiamat Missile Launcher Special Weapon RU-N14's Throwing Claymores v3 Impact Weapon Shock Maul Piercing Weapon CR-A16's Pointy Stick Special Melee Weapon Advanced Datajack Build | -11 -10 -9 -9 -8 -7 -7 -7 -7 -6 -6 -6 -6 -6 -5 -5 -5 -5 -5 -4 -4 -4 -4 -4 -3 -3 -2 ------- Run | Yrd Mat Mat Min Mat Fac Low Low Zio Pro Fac Low Low Dat Pro Fac Upp Upp Zhi Pro Fac Upp Upp War Pro Res Res Slots Evolved 16 | . . 2 . 2 2 . . . . 2 . . . . 2 . . . . 2 . . . . 2 2 Power . | . . . . . . . . . . . . . . . . . . . . . . . . . . . Propulsion . | . . . . . . . . . . . . . . . . . . . . . . . . . . . Utility 16 | . . 2 . 2 2 . . . . 2 . . . . 2 . . . . 2 . . . . 2 2 Weapon . | . . . . . . . . . . . . . . . . . . . . . . . . . . . Parts Attached 236 | 6 2 9 1 10 16 4 5 4 6 19 1 4 . 6 12 2 4 4 8 22 4 . 27 2 29 29 Power 17 | 1 . 1 . 1 1 . 1 . . 4 . . . . . . . 1 . . . . 2 . 3 2 Engine 5 | 1 . 1 . . 1 . 1 . . 1 . . . . . . . . . . . . . . . . Core 3 | . . . . 1 . . . . . 1 . . . . . . . . . . . . 1 . . . Reactor 9 | . . . . . . . . . . 2 . . . . . . . 1 . . . . 1 . 3 2 Propulsion 39 | 2 . . 1 3 4 . . . 1 6 . 1 . . . . 2 1 1 3 3 . 5 . 3 3 Treads . | . . . . . . . . . . . . . . . . . . . . . . . . . . . Leg . | . . . . . . . . . . . . . . . . . . . . . . . . . . . Wheel 39 | 2 . . 1 3 4 . . . 1 6 . 1 . . . . 2 1 1 3 3 . 5 . 3 3 Hover . | . . . . . . . . . . . . . . . . . . . . . . . . . . . Flight . | . . . . . . . . . . . . . . . . . . . . . . . . . . . Utility 99 | 1 1 4 . 3 7 2 3 2 . 5 1 . . 3 3 1 1 2 4 13 1 . 15 . 13 14 Device 46 | . . 2 . 1 2 1 1 2 . 1 1 . . 2 3 1 1 . 1 9 . . 7 . 7 4 Storage 11 | 1 1 . . . 1 . . . . . . . . . . . . 1 . . . . 2 . 3 2 Processor 19 | . . 2 . . 2 . . . . 3 . . . 1 . . . . 1 1 . . 2 . 2 5 Hackware 5 | . . . . 1 . . . . . . . . . . . . . . . 1 . . 2 . 1 . Protection 18 | . . . . 1 2 1 2 . . 1 . . . . . . . 1 2 2 1 . 2 . . 3 Artifact . | . . . . . . . . . . . . . . . . . . . . . . . . . . . Weapon 81 | 2 1 4 . 3 4 2 1 2 5 4 . 3 . 3 9 1 1 . 3 6 . . 5 2 10 10 Energy Gun 30 | 2 . 4 . 2 4 2 1 . 3 3 . 1 . . 1 . . . 1 . . . . . 3 3 Energy Cannon 3 | . . . . . . . . . . . . . . . 2 . . . . 1 . . . . . . Ballistic Gun 12 | . . . . . . . . . . . . 1 . 3 4 . . . . 2 . . . . . 2 Ballistic Cannon 11 | . . . . . . . . . . . . . . . . . . . 1 1 . . . . 5 4 Launcher 8 | . 1 . . 1 . . . . . . . . . . 2 . 1 . . 1 . . 1 . 1 . Special Weapon 12 | . . . . . . . . 2 2 . . 1 . . . . . . 1 . . . 4 2 . . Impact Weapon 1 | . . . . . . . . . . . . . . . . . . . . . . . . . . 1 Slashing Weapon . | . . . . . . . . . . . . . . . . . . . . . . . . . . . Piercing Weapon 1 | . . . . . . . . . . . . . . . . 1 . . . . . . . . . . Special Melee Weapon 3 | . . . . . . . . . . 1 . . . . . . . . . 1 . . . . 1 . Unidentified Prototypes 43 | . . 3 . . . . . 3 1 3 . . . . 5 . . 4 1 . . . 13 . 5 5 Corrupted Parts 6 | . . . . . . 1 . . . . . . . 3 . . . . . 1 . . 1 . . . System Corruption 30 | . . . . . . 1 . . . . . . . 18 . . . . . 1 . . 10 . . . Parts Lost 104 | . . . . . 2 4 . . 4 5 . 6 . . 2 2 2 . 4 13 13 . 6 1 24 16 Power 5 | . . . . . . . . . . . . . . . 1 . . . . . . . . . 3 1 Propulsion 25 | . . . . . 1 . . . 2 3 . 2 . . . 2 . . 3 1 2 . 3 . 3 3 Utility 53 | . . . . . 1 1 . . . . . 1 . . 1 . 2 . 1 10 10 . 3 1 14 8 Weapon 21 | . . . . . . 3 . . 2 2 . 3 . . . . . . . 2 1 . . . 4 4 Highest Loss Streak 16 | . . . . . 1 2 . . 3 1 . 4 . . 1 2 2 . 2 5 10 . 3 1 16 6 To Critical Strikes 3 | . . . . . . . . . . . . . . . . . . . . 2 . . . . 1 . Average Backups 20 | . 3 10 14 12 13 17 19 20 22 23 22 19 19 22 22 23 22 22 22 22 21 19 21 12 17 9 Power 1 | . 1 2 1 1 . 1 1 1 1 1 2 2 2 2 1 1 1 1 . . 1 1 1 1 1 1 Propulsion . | . . . 2 2 2 2 3 3 2 1 2 1 . . . . . 2 . 1 2 1 . . . . Utility 8 | . . 1 1 . 1 5 7 8 10 10 12 11 11 12 8 10 9 8 10 8 7 7 4 4 7 4 Weapon 9 | . 1 6 8 8 8 6 6 7 7 8 6 5 6 7 12 11 11 10 10 8 9 8 12 5 5 2 Tool/Special . | . . . . . . . . . . . . . . . . . . . . . . . . . . . Unused Backups 46 | . . 2 1 1 2 . 2 2 . 4 . . . . 5 2 . 3 2 2 . . 6 . 4 8 Power 11 | . . . 1 1 . . . . . 3 . . . . . . . . 1 . . . 1 . . 4 Propulsion 6 | . . . . . 1 . . . . 1 . . . . . . . 1 . 2 . . . . 1 . Utility 13 | . . . . . . . 2 2 . . . . . . 2 . . 2 1 . . . . . 1 3 Weapon 15 | . . 2 . . . . . . . . . . . . 3 2 . . . . . . 5 . 2 1 Tool/Special 1 | . . . . . 1 . . . . . . . . . . . . . . . . . . . . . Average Slot Usage (%) 85 | . 98 94 100 97 94 91 91 86 80 81 86 85 86 87 98 88 85 99 91 87 73 53 87 83 69 35 Engine 1 | . 14 11 11 8 6 7 7 7 7 . . . . . . . . . . . . . . . . . Reactor 3 | . . . . . . . . . . 3 6 6 6 6 5 5 5 5 5 5 5 5 5 5 3 1 Wheel 6 | . 28 22 22 18 13 7 7 7 12 12 13 12 13 13 11 . 2 11 7 5 9 10 9 5 7 4 Device 19 | . . 16 11 12 13 13 15 15 15 8 13 9 13 13 21 29 23 25 16 20 18 10 25 21 12 3 Storage 6 | . 26 20 11 9 7 7 7 7 7 6 6 6 6 6 5 5 5 5 5 5 5 5 13 10 6 5 Processor 26 | . . 2 22 18 17 23 23 23 23 29 33 33 33 34 35 35 35 35 28 26 18 10 13 15 13 11 Hackware 2 | . . . . 8 7 7 3 . . . . . . . . . . . . 3 5 5 11 10 11 . Protection 3 | . . . . 3 10 8 10 9 . 5 . 3 . . 5 . . 2 14 11 5 . . 8 5 3 Energy Gun 4 | . 18 21 22 16 13 14 15 14 11 8 9 9 6 5 . . . . . . . . 3 3 2 . Ballistic Gun 5 | . . . . . . . . . . . . 2 6 7 10 9 10 11 10 7 5 5 1 . . . Peak Build Rating 216 | 6 7 23 23 29 52 53 56 83 83 93 86 86 83 85 92 92 93 99 104 126 125 73 165 159 216 100 Average Rating 90 | 4 6 17 23 27 39 51 54 62 69 79 84 81 83 81 87 90 85 95 102 114 91 70 130 149 179 60 On Entrance 70 | . 6 7 23 23 29 52 52 54 83 75 82 82 83 83 66 92 90 93 99 103 118 65 73 151 147 60 Avg Prop Armor Cover (%) . | . . . . . . . . . . . . . . . . . . . . . . . . . . . Naked Turns 100 | . . . . . . . . . . . . . . . . . . . . . . . . . . 100 Heaviest Build 192 | 12 34 40 34 44 111 114 127 131 131 129 114 129 109 109 132 117 114 120 145 152 132 120 142 149 192 146 Greatest Support 32 | 32 32 32 32 26 28 28 28 28 28 26 20 26 26 26 26 26 20 22 22 28 26 26 26 10 32 26 Greatest Overweight (x) 46 | . 1 1 1 1 3 4 4 4 10 12 5 6 4 4 5 38 37 5 14 8 8 4 45 14 46 12 Average Overweight (x) 5 | . . . 1 1 1 3 3 3 4 5 5 4 4 3 4 33 12 5 7 4 4 4 5 13 5 2 Largest Inventory Capacity 25 | 8 15 15 15 15 25 25 25 25 25 25 25 25 25 25 25 25 25 25 25 25 25 25 25 25 25 25 Average Capacity 24 | 6 14 15 15 15 15 25 25 25 25 25 25 25 25 25 25 25 25 25 25 25 25 25 25 25 25 18 Most Carried 25 | 2 4 15 15 15 15 25 25 25 25 25 25 24 21 25 25 25 25 25 25 25 25 23 25 24 25 16 Average Carried 22 | . 3 10 14 14 14 18 24 24 23 24 24 21 21 24 24 24 24 24 24 24 23 21 24 22 22 9 Final Capacity 25 | 8 15 15 15 15 25 25 25 25 25 25 25 25 25 25 25 25 25 25 25 25 25 25 25 25 25 25 Final Carried 25 | 2 4 15 15 15 15 25 23 25 24 25 24 21 21 24 25 25 25 25 25 25 22 23 23 22 16 9 Class Distribution -------------------- 45% | Mutant 24% | Skirmisher 9% | Scavenger-Mutant 8% | Hacker-Mutant 6% | Assassin 3% | Trapper-Mutant Dominant Class ---------------- Mutant | -10/Materials Mutant | -9/Materials Mutant | -9/Mines Mutant | -8/Materials Scavenger-Mutant | -7/Factory Mutant | -7/Lower Caves Trapper-Mutant | -7/Lower Caves Mutant | -7/Zion Scavenger-Mutant | -6/Proximity Caves Mutant | -6/Factory Mutant | -6/Lower Caves Mutant | -6/Lower Caves Mutant | -6/Data Miner Mutant | -5/Proximity Caves Skirmisher | -5/Factory Skirmisher | -5/Upper Caves Mutant | -5/Upper Caves Mutant | -5/Zhirov Mutant | -4/Proximity Caves Mutant | -4/Factory Mutant | -4/Upper Caves Mutant | -4/Upper Caves Hacker-Mutant | -4/Warlord Scavenger-Mutant | -3/Proximity Caves Hacker-Mutant | -3/Research Mutant | -2/Research Resources | -11 -10 -9 -9 -8 -7 -7 -7 -7 -6 -6 -6 -6 -6 -5 -5 -5 -5 -5 -4 -4 -4 -4 -4 -3 -3 -2 ----------- Run | Yrd Mat Mat Min Mat Fac Low Low Zio Pro Fac Low Low Dat Pro Fac Upp Upp Zhi Pro Fac Upp Upp War Pro Res Res Matter Collected 12829 | 223 . 177 30 132 214 243 229 119 471 1508 552 815 . 144 570 128 300 520 473 989 252 291 869 71 2746 763 Remotely 1276 | . . . . . . . . . . . . . . . . . . . . . . . . . 1276 . Salvage Created 14380 | . . 344 77 373 595 711 125 . 433 1312 319 707 . . 1053 287 416 409 427 1907 499 74 942 84 2981 305 Parts 591 | . 1 32 7 18 18 18 2 . 15 78 6 29 . . 50 21 21 7 25 91 8 9 22 5 99 9 Haulers Intercepted 8 | . . 1 . 1 . . . . . 1 . . . . 4 . . . . . . . . . 1 . Recyclers Shooed 8 | . . 2 . . . . . . . 3 . . . . . . . . . 1 . . . . 2 . Parts Field Recycled 20 | . . . . . . . . . . . . . . . . . . . . . . . . . 20 . Retrieved Matter 321 | . . . . . . . . . . . . . . . . . . . . . . . . . 321 . Parts Self-Destructed 125 | . . . . . . 5 7 . 10 . 3 11 . . . 15 30 5 21 . 11 6 . 1 . . Prevented 33 | . . . . . . 10 4 . 3 . 2 9 . . . . 5 . . . . . . . . . Parts Restored 2 | . . . . . . . . . . . . . . . . . . . . . . . . . . 2 Broken 2 | . . . . . . . . . . . . . . . . . . . . . . . . . . 2 Kills | -11 -10 -9 -9 -8 -7 -7 -7 -7 -6 -6 -6 -6 -6 -5 -5 -5 -5 -5 -4 -4 -4 -4 -4 -3 -3 -2 ------- Run | Yrd Mat Mat Min Mat Fac Low Low Zio Pro Fac Low Low Dat Pro Fac Upp Upp Zhi Pro Fac Upp Upp War Pro Res Res Combat Hostiles Destroyed 256 | . 3 7 4 4 11 15 2 . 10 12 3 15 . . 8 2 4 . 4 26 13 8 41 5 53 6 Melee 1 | . . . . . . . . . . . . . . . . . . . . . . . . . 1 . Guns 81 | . . 3 4 3 10 5 2 . 4 7 2 3 . . 8 2 3 . 3 12 4 . . . 5 1 Cannons 40 | . . . . . . . . . 3 1 . 3 . . . . . . 1 5 . . 2 . 22 3 AOE 121 | . 3 4 . . . 9 . . 3 2 1 8 . . . . 1 . . 9 8 8 37 5 23 . Classes Destroyed 27 | . 1 7 2 1 1 3 . . 1 1 . . . . . 1 . . 2 . . . 4 1 2 . Worker 15 | . . 1 . 2 1 . . . . 6 . . . . . . . . . 1 . . . . 4 . Builder 10 | . . . . . . . . . . 4 . . . . . . . . . 4 . . . . 2 . Tunneler 5 | . . . 2 . . . . . . 1 . . . . . . . . . 1 . . . . 1 . Hauler 8 | . . 1 . 1 . . . . . 1 . . . . 4 . . . . . . . . . 1 . Recycler 12 | . . 1 . 1 . . . . . 3 . . . . . . . . . 2 . . . . 5 . Minesweeper 5 | . . . . . . 1 . . . . . . . . . 2 . . 1 . . . . 1 . . Mechanic 4 | . . . . . . . . . . . . . . . . . . . . . . . 1 . 2 1 Operator 5 | . . 1 . 1 . . . . . . . . . . 2 . . . . 1 . . . . . . Drone 1 | . . . . . . . . . . . . . . . . . . . . . . . . 1 . . Watcher 3 | . . 2 . . . . . . . . . . . . . . . . . . . . . . 1 . Swarmer 46 | . 3 3 2 1 . 1 . . 6 4 . 4 . . . . 2 . . . . 8 4 . 5 3 Saboteur 1 | . . . . . . . . . . . . . . . . . . . . . . . . . 1 . Grunt 83 | . . 3 . . 7 4 1 . 3 3 . 2 . . 2 1 1 . 1 10 4 . 16 4 21 . Brawler 18 | . . . . 1 1 3 1 . . . 1 . . . . . . . . . 4 . 5 . 2 . Duelist 12 | . . . . . . 3 . . 1 . 1 1 . . . . . . . . 2 . 2 . 2 . Protector 7 | . . . . . . . . . . . . . . . . . . . . . . . 6 . 1 . Researcher 1 | . . . . . . . . . . . . . . . . . . . 1 . . . . . . . Sentry 19 | . . 1 . 2 1 2 . . . 1 1 1 . . 1 . 1 . 1 2 2 . . . 2 1 Demolisher 2 | . . . 2 . . . . . . . . . . . . . . . . . . . . . . . Specialist 1 | . . . . . . . . . . . . . . . . . . . . . . . 1 . . . Hunter 35 | . . . . . . 2 . . . 2 . 3 . . 2 1 . . 1 11 . . 4 . 8 1 Programmer 20 | . . . . . 2 . . . . 2 . . . . 3 . . . . 3 . . . . 9 1 Heavy 2 | . . . . . . . . . . . . . . . . . . . . . . . . . 2 . Behemoth 2 | . . . . . . . . . . . . . . . . . . . 1 . 1 . . . . . Executioner 3 | . . . . . . . . . . . . . . . . . . . . . . . 3 . . . Decomposer 2 | . . . . . . . . . 1 . . . . . . . 1 . . . . . . . . . Packrat 6 | . . . . . . 1 . . . . 2 . . . . . 2 . . . 1 . . . . . Samaritan 4 | . . . . . . . . . 1 . . 2 . . . . 1 . . . . . . . . . Thug 1 | . . . . . . . . . . . . 1 . . . . . . . . . . . . . . Butcher 3 | . . . . . . . . . . . . 3 . . . . . . . . . . . . . . Mutant 1 | . . . . . . . . . . . . . . . . 1 . . . . . . . . . . Best Kill Streak 20 | . 3 6 2 2 3 7 2 . 3 4 3 4 . . 3 1 2 . 2 16 12 5 20 4 10 3 Combat Bots Only 19 | . 3 5 2 2 3 7 2 . 3 3 3 4 . . 3 1 2 . 2 12 11 5 19 3 7 3 Max Kills in Single Turn 6 | . 2 4 1 1 1 2 2 . 3 3 1 4 . . 1 1 1 . 1 4 2 4 5 2 6 1 Gunslinging 1 | . . . . . . . 1 . . . . . . . . . . . . 1 . . . . . . Exploded 5 | . 2 4 . . . 2 . . 2 2 1 3 . . . . 1 . . 3 2 4 5 1 4 . Melee 1 | . . . . . . . . . . . . . . . . . . . . . . . . . 1 . Uniques/NPCs Destroyed . | . . . . . . . . . . . . . . . . . . . . . . . . . . . Combat | -11 -10 -9 -9 -8 -7 -7 -7 -7 -6 -6 -6 -6 -6 -5 -5 -5 -5 -5 -4 -4 -4 -4 -4 -3 -3 -2 -------- Run | Yrd Mat Mat Min Mat Fac Low Low Zio Pro Fac Low Low Dat Pro Fac Upp Upp Zhi Pro Fac Upp Upp War Pro Res Res Hostile Shots Fired 1667 | . 6 24 4 40 100 69 3 . 40 120 18 136 . . 27 18 8 . 59 278 53 8 80 10 403 163 Missed 569 | . . 8 . 14 33 20 2 . 11 38 9 52 . . 9 5 4 . 19 111 16 2 36 3 130 47 Hits 1098 | . 6 16 4 26 67 49 1 . 29 82 9 84 . . 18 13 4 . 40 167 37 6 44 7 273 116 Melee 40 | . . . . . . . . . 4 . . 1 . . . . . . . . 5 . . . 10 20 Projectile 1058 | . 6 16 4 26 67 49 1 . 25 82 9 83 . . 18 13 4 . 40 167 32 6 44 7 263 96 AOE 4 | . . . 1 . . . . . . . . . . . . . . . . . . . . . . 3 Critical Strikes 71 | . . . . 2 2 3 . . 3 5 . 3 . . . 1 . . . 8 4 . 2 1 28 9 Actively Blocked 2 | . . . . . . . . . . . . . . . . . . . . 1 1 . . . . . Part Disruptions 1 | . . . . . . . . . . . . . . . 1 . . . . . . . . . . . Damage Taken 22452 | . 51 172 79 393 910 752 45 . 572 1246 66 872 . . 327 213 128 . 629 2438 1133 92 1232 135 7166 3801 Core 4338 | . 8 72 6 104 185 66 45 . 135 123 23 68 . . 70 58 19 . 30 207 236 60 217 . 1146 1460 Absorbed by Shields 164 | . . . . . . . . . . . . . . . 16 47 50 . 27 . . . . . . 24 Redirected to Shielding 210 | . . . . . . . . . . 57 . . . . . . . . 30 91 32 . . . . . Ignored by Resistances 1172 | . . . . . . . . . . 155 . 275 . . 21 . . . 159 233 145 . 184 . . . Regen/Repaired (Parts) 777 | . . . . . 128 . . . . 42 . . . . . . . . . 136 . . 108 . 363 . Core Remaining (%) 65 | 100 96 . 80 81 . . . . 38 . . . . 74 . . . . 82 . . . . 37 3 . Volleys Fired 748 | . 5 41 6 26 37 32 4 4 31 71 12 36 . . 36 19 21 14 30 79 23 4 28 8 141 40 Largest 2 | . 2 2 2 2 2 2 2 1 2 2 2 2 . . 2 2 2 2 2 2 2 1 2 1 2 2 Hottest 176 | . 80 122 117 119 130 100 105 55 116 136 100 121 . . 70 70 80 70 75 116 70 46 72 160 160 176 Shots Fired 1267 | . 7 76 12 50 67 51 8 4 42 129 17 63 . . 71 38 38 28 60 149 26 5 29 8 222 67 Gun 934 | . 4 75 12 48 66 40 8 4 39 123 16 58 . . 71 38 36 28 56 113 11 1 10 1 61 15 Cannon 232 | . . . . . . . . . . . . . . . . . . . 4 32 . . . . 144 52 Launcher 55 | . 3 1 . 2 1 11 . . . . . . . . . . 2 . . 2 9 4 6 7 7 . Special 46 | . . . . . . . . . 3 6 1 5 . . . . . . . 2 6 . 13 . 10 . Kinetic 590 | . . . . . . . . . . . . . . . 71 38 36 28 56 142 11 1 . . 144 63 Thermal 301 | . 4 75 12 48 58 . . . 4 24 . 17 . . . . . . 4 . . . 10 1 40 4 Explosive 85 | . 3 1 . 2 1 11 . . 3 1 1 5 . . . . 2 . . 4 9 4 19 7 12 . Electromagnetic 275 | . . . . . 8 40 8 4 35 99 16 41 . . . . . . . 3 . . . . 21 . Entropic 5 | . . . . . . . . . . . . . . . . . . . . . . . . . 5 . Robot Hit Streak 27 | . 2 8 5 25 15 17 5 . 9 24 9 12 . . 13 8 12 14 19 13 14 4 10 25 27 14 Robot Miss Streak 6 | . 1 4 3 1 2 2 2 . 3 3 3 4 . . 3 3 3 2 2 6 2 . 3 . 6 2 Penetration Max 1 | . . . . . . . . . . . . . . . 1 . . 1 . 1 1 . . . 1 . Secondary Targets 9 | . . . . 1 2 . 1 . . . . . . . 1 . . . . 2 . . . . 2 . Max Gunslinging Chain 1 | . . . . 1 1 . 1 . . . . . . . 1 . . . . 1 . . . . 1 . Shots Hit Robots 857 | . 4 41 7 42 51 36 6 . 29 93 12 46 . . 45 26 25 24 44 90 19 3 20 7 137 50 Core Hits 672 | . 5 14 6 18 23 40 4 . 16 45 11 33 . . 23 14 18 18 17 67 40 8 118 16 104 14 Critical Kills 71 | . . . . . . . . . . . . . . . 14 4 6 2 5 22 2 . . . 15 1 Critical Parts Destroyed 87 | . . . . . . . . . . . . . . . 18 8 6 5 7 24 2 . . . 15 2 Critical Strikes 227 | . . 3 . . 5 2 1 . 4 4 4 10 . . 32 12 13 7 15 49 5 . 4 . 48 9 Burn 24 | . . 3 . . 5 . . . 1 3 . 3 . . . . . . . . . . 2 . 7 . Destroy 166 | . . . . . . . . . . . . . . . 32 12 13 7 15 48 5 . . . 30 4 Blast 13 | . . . . . . . . . . . . . . . . . . . . . . . . . 9 4 Corrupt 16 | . . . . . . 2 1 . 3 1 3 6 . . . . . . . . . . . . . . Smash 1 | . . . . . . . . . . . . . . . . . . . . . . . . . . 1 Sever 7 | . . . . . . . . . . . 1 1 . . . . . . . 1 . . 2 . 2 . Melee Attacks 13 | . . . . . . . . . . . . . . . . 2 . . 2 . . . . . 5 4 Impact 4 | . . . . . . . . . . . . . . . . . . . . . . . . . . 4 Slashing . | . . . . . . . . . . . . . . . . . . . . . . . . . . . Piercing 4 | . . . . . . . . . . . . . . . . 2 . . 2 . . . . . . . Sneak Attacks 6 | . . . . . . . . . . . . . . . . 1 . . . . . . . . 5 . Combat Hostiles . | . . . . . . . . . . . . . . . . . . . . . . . . . . . Follow-up Attacks . | . . . . . . . . . . . . . . . . . . . . . . . . . . . Damage Inflicted 42721 | . 286 951 129 873 989 1393 96 . 1039 1900 475 2242 . . 365 249 349 201 464 2707 2136 1207 10217 1460 11068 1925 Guns 9222 | . 36 785 129 759 928 492 96 . 405 1407 199 756 . . 365 183 188 201 333 483 69 . 162 25 1068 153 Cannons 5304 | . . . . . . . . . . . . . . . . . . . 131 311 . . . . 3294 1568 Explosions 26574 | . 250 166 . 114 61 901 . . 527 458 248 1324 . . . . 161 . . 1844 2067 1207 9558 1435 6253 . Melee 211 | . . . . . . . . . . . . . . . . 66 . . . . . . . . . 145 Ramming 63 | . . . . . . . . . . . . . . . . . . . . . . . . . 4 59 Kinetic 7124 | . . . . . . . . . . . . . . . 365 183 188 201 395 774 69 . . . 3294 1655 Thermal 4633 | . 36 785 129 759 886 . . . 60 648 . 375 . . . . . . 69 . . . 162 25 633 66 Explosive 22940 | . 250 166 . 114 . 901 . . 495 221 248 1209 . . . . 161 . . 1844 2067 1207 9558 1435 3064 . Electromagnetic 3214 | . . . . . 103 492 96 . 377 996 199 496 . . . . . . . 20 . . . . 435 . Impact 145 | . . . . . . . . . . . . . . . . . . . . . . . . . . 145 Slashing 1347 | . . . . . . . . . 107 35 28 162 . . . . . . . 69 . . 497 . 449 . Piercing 66 | . . . . . . . . . . . . . . . . 66 . . . . . . . . . . Entropic 3189 | . . . . . . . . . . . . . . . . . . . . . . . . . 3189 . Highest Corruption 23 | . . . . . 1 2 2 . . 1 1 1 1 19 . . . . . 1 23 23 23 2 18 3 Average Corruption 4 | . . . . . 1 1 1 . . 1 1 1 1 3 . . . . . 1 11 23 19 2 8 2 Corruption Purged 2 | . . . . . . . 2 . . . . . . . . . . . . . . . . . . . Corruption Blocked 18 | . . . . . . . . . . . . . . . . . . . . 12 . . . . . 6 Effects 183 | . . . . . . 8 9 . . 5 4 7 1 12 . . . . . 2 13 18 3 8 93 . Message Errors 41 | . . . . . . 2 1 . . 1 . 1 . 3 . . . . . . 3 5 1 1 23 . Matter Fused 48 | . . . . . . 1 3 . . 2 3 1 1 3 . . . . . 2 1 5 1 1 24 . Heat Flow Errors 23 | . . . . . . 2 . . . 1 . 1 . 2 . . . . . . 3 . . 3 11 . Energy Discharges 23 | . . . . . . . 2 . . . . 2 . 3 . . . . . . 2 3 1 1 9 . Parts Fused 3 | . . . . . . . . . . . . . . . . . . . . . 1 . . . 2 . Data Loss (minor) 16 | . . . . . . 2 1 . . 1 . . . . . . . . . . 3 2 . 2 5 . Data Loss (major) 9 | . . . . . . . 1 . . . 1 1 . 1 . . . . . . . 1 . . 4 . Misfires 7 | . . . . . . . . . . . . 1 . . . . . . . . . 1 . . 5 . Alerts 6 | . . . . . . 1 1 . . . . . . . . . . . . . . 1 . . 3 . Misdirections 1 | . . . . . . . . . . . . . . . . . . . . . . . . . 1 . Weapon Failures 6 | . . . . . . . . . . . . . . . . . . . . . . . . . 6 . Overload Shots 3 | . . . . . . . . . . . . . . . . . . . . . . . 1 . 2 . Effects 1 | . . . . . . . . . . . . . . . . . . . . . . . . . 1 . Short Circuit 1 | . . . . . . . . . . . . . . . . . . . . . . . . . 1 . Overflow Damage 1187 | . 40 . . . . 34 . . 38 16 . 20 . . . . . . . 59 63 125 93 31 529 139 Projectiles 282 | . . . . . . . . . . . . . . . . . . . . . . . 32 . 158 92 Explosions 858 | . 40 . . . . 34 . . 38 16 . 20 . . . . . . . 59 63 125 61 31 371 . Melee 47 | . . . . . . . . . . . . . . . . . . . . . . . . . . 47 Knockbacks 46 | . . . . . . . . . . . . . . . . . . . . 3 . . . . 28 15 Impact 1 | . . . . . . . . . . . . . . . . . . . . . . . . . . 1 Kinetic 44 | . . . . . . . . . . . . . . . . . . . . 3 . . . . 27 14 Secondary 1 | . . . . . . . . . . . . . . . . . . . . . . . . . 1 . Self-Inflicted Damage 921 | . . . . . . . . . . 72 . . . . . . . . . . 73 . . . 749 27 Shots 11 | . . . . . . . . . . 3 . . . . . . . . . . 3 . . . 5 . Rammed 10 | . . . . . . . . . . . . . . . . . . . . . . . . . 1 9 Targets Rammed 10 | . . . . . . . . . . . . . . . . . . . . . . . . . 1 9 Kicked . | . . . . . . . . . . . . . . . . . . . . . . . . . . . Crushed . | . . . . . . . . . . . . . . . . . . . . . . . . . . . Highest Temperature 352 | . 36 318 24 196 352 199 180 26 204 255 14 162 . 237 . . 40 . 196 240 271 . . 169 324 335 Average Temperature 74 | . 20 64 12 80 124 68 94 12 77 38 8 39 . 108 . . 29 . 51 105 118 . . 73 76 94 Received Heat Transfer 3339 | . . 51 . 180 417 291 9 . 108 276 18 123 . . . . 6 . 24 189 620 . 90 21 853 63 Effects 1 | . . . . . 1 . . . . . . . . . . . . . . . . . . . . . Energy Bleed 1 | . . . . . 1 . . . . . . . . . . . . . . . . . . . . . Siege Activations . | . . . . . . . . . . . . . . . . . . . . . . . . . . . Martial Activations . | . . . . . . . . . . . . . . . . . . . . . . . . . . . Shielding Activations . | . . . . . . . . . . . . . . . . . . . . . . . . . . . Robots Disrupted 3 | . . . . . . . . . . 3 . . . . . . . . . . . . . . . . Combat Hostiles 2 | . . . . . . . . . . 2 . . . . . . . . . . . . . . . . Robots Corrupted 5 | . . . . . . 2 . . . 1 . . . . . . . . . . . . . . . 2 Combat Hostiles 3 | . . . . . . 1 . . . . . . . . . . . . . . . . . . . 2 Parts Fried 32 | . . . . . 1 5 . . 5 6 1 10 . . . . . . . 1 . . . . 1 2 Impact Corruptions 3 | . . . . . . . . . . . . . . . . . . . . . . . . . . 3 Robots Melted 7 | . . . . 1 1 . . . . . . 1 . . . . . . . . . . 2 . 2 . Combat Hostiles 7 | . . . . 1 1 . . . . . . 1 . . . . . . . . . . 2 . 2 . Parts Melted 31 | . . . 1 5 6 . . . . 3 . 3 . . . . . . . . . . 1 . 11 1 Heat Transferred 10572 | . 75 1752 259 1591 2085 . . . 185 1225 . 803 . . . . . . 112 . . . 515 50 1846 74 Parts Sabotaged 5 | . . . . . . . . . . . . . . . . . . . . . . . . . 5 . Parts Stolen . | . . . . . . . . . . . . . . . . . . . . . . . . . . . Parts Stripped . | . . . . . . . . . . . . . . . . . . . . . . . . . . . Power Chain Reactions 9 | . . . . . 1 . . . 1 5 . 2 . . . . . . . . . . . . . . Alert | -11 -10 -9 -9 -8 -7 -7 -7 -7 -6 -6 -6 -6 -6 -5 -5 -5 -5 -5 -4 -4 -4 -4 -4 -3 -3 -2 ------- Run | Yrd Mat Mat Min Mat Fac Low Low Zio Pro Fac Low Low Dat Pro Fac Upp Upp Zhi Pro Fac Upp Upp War Pro Res Res Maximum Alert Level 5 | . . . . 1 1 . . . . 1 . . . . 1 . . . . 2 . . . . 5 3 Low Security (%) 40 | 100 100 100 100 69 96 . . . . 33 . . . . 76 . . . . 40 . . . . . . Level 1 27 | . . . . 30 3 . . . . 66 . . . . 23 . . . . 45 . . . . 30 . Level 2 6 | . . . . . . . . . . . . . . . . . . . . 14 . . . . 17 . Level 3 18 | . . . . . . . . . . . . . . . . . . . . . . . . . 29 100 Level 4 4 | . . . . . . . . . . . . . . . . . . . . . . . . . 16 . Level 5 1 | . . . . . . . . . . . . . . . . . . . . . . . . . 5 . High Security . | . . . . . . . . . . . . . . . . . . . . . . . . . . . Max Security . | . . . . . . . . . . . . . . . . . . . . . . . . . . . Peak Influence 1957 | . 101 158 82 233 215 . . . . 295 . . . . 245 . . . . 492 . . . . 1957 1098 Initial 1098 | . . . 34 5 99 . . . . . . . . . . . . . . . . . . . 450 1098 Average 395 | . 40 75 16 149 155 . . . . 201 . . . . 119 . . . . 233 . . . . 748 909 Influence Increases 10281 | . 111 262 140 444 427 355 101 . 260 735 75 275 . . 565 65 336 10 134 974 285 195 855 90 3270 317 Destroy 0b10 Robot/C 5800 | . 60 140 80 280 240 300 60 . 200 240 60 220 . . 320 40 240 . 100 520 260 160 700 80 1380 120 Destroy 0b10 Robot/NC 415 | . . 30 10 25 5 5 . . . 75 . . . . 45 10 . 10 5 45 5 . 35 10 95 5 Destroy Leader 930 | . 10 36 20 72 50 20 10 . 30 52 . 40 . . 92 10 20 . 20 100 20 20 . . 278 30 Allied During Kill 172 | . . . . 45 11 . 1 . . . . . . . 40 5 46 . 9 . . . . . 15 . Trap Triggered on 0b10 210 | . . . . . 20 . . . . 40 . . . . . . . . . 70 . . . . 80 . Successful Hack 132 | . 10 14 . . 32 . . . . 36 . . . . 8 . . . . 7 . . . . 25 . Disable Machine 240 | . 15 15 15 . . . . . . 30 . . . . 60 . . . . 45 . . . . 60 . Anti-Garrison Action 550 | . . . . . . . . . . 200 . . . . . . . . . . . . . . 350 . Destroy Structure 647 | . 16 12 . 22 9 . . . . 17 . . . . . . . . . 172 . . . . 372 27 Advance Influence 450 | . . . . . . . . . . . . . . . . . . . . . . . . . 450 . Partial Spotted 15 | . . 15 . . . . . . . . . . . . . . . . . . . . . . . . Lose Combat Pursuer 720 | . . . 15 . 60 30 30 . 30 45 15 15 . . . . 30 . . 15 . 15 120 . 165 135 Influence Decreases 9460 | . 110 174 213 241 474 527 101 . 260 508 275 302 . . 394 236 251 95 134 511 508 252 352 776 1316 1450 Entered New Map 2434 | . . 1 55 11 120 64 . . . . 85 6 . . . 64 . 85 . . 172 46 183 686 . 856 Time Decay 5617 | . 110 173 158 230 294 453 82 . 220 458 190 236 . . 374 152 221 10 134 381 206 206 109 80 706 434 Search Patrol Dispatched 200 | . . . . . . . . . . . . . . . . . . . . . . . . . 200 . Lost Part 960 | . . . . . 20 10 . . 40 50 . 60 . . 20 20 10 . . 130 130 . 60 10 240 160 Lost Ally 99 | . . . . . 40 . 19 . . . . . . . . . 20 . . . . . . . 20 . Purge Threat 150 | . . . . . . . . . . . . . . . . . . . . . . . . . 150 . Squads Dispatched 51 | . 2 2 . . 4 . . . . 5 . . . . 8 . . . . 11 . . . . 18 1 Investigation 11 | . 1 . . . 2 . . . . 1 . . . . 1 . . . . 4 . . . . 1 1 Extermination 14 | . . . . . 2 . . . . 2 . . . . 2 . . . . 3 . . . . 5 . Reinforcement 17 | . 1 2 . . . . . . . 2 . . . . 5 . . . . 3 . . . . 4 . Assault 8 | . . . . . . . . . . . . . . . . . . . . . . . . . 8 . Garrison 1 | . . . . . . . . . . . . . . . . . . . . 1 . . . . . . Intercept . | . . . . . . . . . . . . . . . . . . . . . . . . . . . Searches Triggered 2 | . . . . . . . . . . . . . . . . . . . . . . . . . 2 . Data Miner Redirects 9 | . . . . . . . . . . . . . . . . . . . . 1 . . . . 8 . Construction Impeded 4 | . . 1 . . . . . . . 1 . . . . . . . . . 2 . . . . . . Haulers Reinforced 5 | . . . . . . . . . . 1 . . . . 3 . . . . 1 . . . . . . Active Scanning Responses . | . . . . . . . . . . . . . . . . . . . . . . . . . . . Cargo Convoy Interrupts . | . . . . . . . . . . . . . . . . . . . . . . . . . . . Stealth | -11 -10 -9 -9 -8 -7 -7 -7 -7 -6 -6 -6 -6 -6 -5 -5 -5 -5 -5 -4 -4 -4 -4 -4 -3 -3 -2 --------- Run | Yrd Mat Mat Min Mat Fac Low Low Zio Pro Fac Low Low Dat Pro Fac Upp Upp Zhi Pro Fac Upp Upp War Pro Res Res Distress Signals 15 | . . 2 . 1 . . . . . . . . . . . . . . . 1 . . 1 . 6 4 Communications Jammed . | . . . . . . . . . . . . . . . . . . . . . . . . . . . Distress Signals . | . . . . . . . . . . . . . . . . . . . . . . . . . . . Times Spotted 431 | . 6 19 4 19 17 19 8 . 12 20 3 16 . . 19 2 11 . 6 29 11 5 73 6 95 31 Peak Tracking Total 20 | . 4 5 2 5 4 9 4 . 4 4 3 4 . . 4 2 4 . 3 9 7 4 20 2 10 11 Tactical Retreats 35 | . . . 1 . 3 2 1 . 2 2 1 1 . . . . 2 . . 1 . 1 4 . 10 4 Traps | -11 -10 -9 -9 -8 -7 -7 -7 -7 -6 -6 -6 -6 -6 -5 -5 -5 -5 -5 -4 -4 -4 -4 -4 -3 -3 -2 ------- Run | Yrd Mat Mat Min Mat Fac Low Low Zio Pro Fac Low Low Dat Pro Fac Upp Upp Zhi Pro Fac Upp Upp War Pro Res Res Traps Triggered . | . . . . . . . . . . . . . . . . . . . . . . . . . . . Indirectly . | . . . . . . . . . . . . . . . . . . . . . . . . . . . Trap Hack Attempts 109 | . . . . . . . . . . 50 . . . . . . . . . 26 . . . . 33 . Triggered 1 | . . . . . . . . . . 1 . . . . . . . . . . . . . . . . Disarmed 7 | . . . . . . . . . . . . . . . . . . . . . . . . . 7 . Reprogrammed 11 | . . . . . . . . . . 4 . . . . . . . . . 6 . . . . 1 . Reused 24 | . . . . . 2 . 2 . . 4 . . . . . . . . 1 7 . . . . 8 . Traps Extracted 49 | . . . . . . . 32 . 4 . . . . . . . . . . 4 . . 9 . . . Installed 62 | . . . . . 2 . 34 . 4 4 . . . . . . . . 1 9 . . . . 8 . Triggered 24 | . . . . . 2 . 2 . . 4 . . . . . . . . 1 7 . . . . 8 . Most Traps Carried 8 | . . . 2 2 2 8 8 6 4 4 . . . . . . . . 6 5 . . 8 8 8 . Machines | -11 -10 -9 -9 -8 -7 -7 -7 -7 -6 -6 -6 -6 -6 -5 -5 -5 -5 -5 -4 -4 -4 -4 -4 -3 -3 -2 ---------- Run | Yrd Mat Mat Min Mat Fac Low Low Zio Pro Fac Low Low Dat Pro Fac Upp Upp Zhi Pro Fac Upp Upp War Pro Res Res Machines Disabled 20 | . 1 1 1 . . . . . 1 2 . . . . 4 1 . . . 3 1 . . . 5 . Max in Single Turn 2 | . 1 1 1 . . . . . 1 1 . . . . . 1 . . . 2 1 . . . 1 . Garrison Access 6 | . . . . . . . . . . 1 . . . . 1 . . . . . . . . . 3 1 Machines Repaired . | . . . . . . . . . . . . . . . . . . . . . . . . . . . Machines Dismantled . | . . . . . . . . . . . . . . . . . . . . . . . . . . . Machines Sabotaged . | . . . . . . . . . . . . . . . . . . . . . . . . . . . Overloaded Fab Kills . | . . . . . . . . . . . . . . . . . . . . . . . . . . . Hacking | -11 -10 -9 -9 -8 -7 -7 -7 -7 -6 -6 -6 -6 -6 -5 -5 -5 -5 -5 -4 -4 -4 -4 -4 -3 -3 -2 --------- Run | Yrd Mat Mat Min Mat Fac Low Low Zio Pro Fac Low Low Dat Pro Fac Upp Upp Zhi Pro Fac Upp Upp War Pro Res Res Machines Accessed 52 | . 4 3 . 6 4 . 4 . . 4 . . 3 . 4 1 . 4 . 5 . . 1 . 7 2 Terminals 17 | . 4 2 . 5 . . . . . 1 . . . . 1 . . . . 2 . . . . 2 . Fabricators 2 | . . . . . 2 . . . . . . . . . . . . . . . . . . . . . Repair Stations 7 | . . . . . 1 . . . . 2 . . . . 2 . . . . 1 . . . . 1 . Recycling Units . | . . . . . . . . . . . . . . . . . . . . . . . . . . . Scanalyzers 7 | . . 1 . 1 1 . . . . . . . . . . . . . . 1 . . . . 2 1 Garrison Access 6 | . . . . . . . . . . 1 . . . . 1 . . . . 1 . . . . 2 1 Total Hacks 180 | . 17 11 . 20 12 . 7 . . 11 . . 18 . 8 1 . 16 . 18 . . 1 . 36 4 Successful 114 | . 7 7 . 14 8 . 7 . . 5 . . 18 . 2 1 . 16 . 8 . . 1 . 20 . Failed 64 | . 10 3 . 5 4 . . . . 6 . . . . 6 . . . . 10 . . . . 16 4 Catastrophic 10 | . 1 . . . . . . . . 1 . . . . 1 . . . . 3 . . . . 2 2 Database Lockouts 2 | . . 1 . 1 . . . . . . . . . . . . . . . . . . . . . . Manual 46 | . 16 5 . 7 1 . . . 1 2 . . . . 2 . . . . 7 . . 1 . 1 3 Terminals 51 | . 17 5 . 12 . . . . . 4 . . . . 2 . . . . 7 . . . . 4 . Fabricators 8 | . . . . . 8 . . . . . . . . . . . . . . . . . . . . . Repair Stations 24 | . . . . . 2 . . . . 6 . . . . 4 . . . . 6 . . . . 6 . Recycling Units . | . . . . . . . . . . . . . . . . . . . . . . . . . . . Scanalyzers 42 | . . 6 . 8 2 . . . . . . . . . . . . . . 3 . . . . 22 1 Garrison Access 12 | . . . . . . . . . . 1 . . . . 2 . . . . 2 . . . . 4 3 Terminal Hacks 58 | . 5 2 . 3 . . 7 . . 1 . . 18 . 1 1 . 16 . 2 . . 1 . 1 . Record 10 | . . . . . . . 4 . . . . . 2 . . . . 4 . . . . . . . . Part Schematic 21 | . 4 2 . . . . . . . . . . 9 . 1 . . 4 . 1 . . . . . . Robot Schematic 4 | . . . . . . . . . . . . . 4 . . . . . . . . . . . . . Robot Analysis 6 | . 1 . . 1 . . . . . . . . . . . . . 4 . . . . . . . . Prototype ID Bank 7 | . . . . . . . . . . . . . 3 . . . . 4 . . . . . . . . Open Door 5 | . . . . . . . 3 . . . . . . . . 1 . . . . . . 1 . . . Level Access Points 1 | . . . . 1 . . . . . . . . . . . . . . . . . . . . . . Terminal Index 1 | . . . . 1 . . . . . . . . . . . . . . . . . . . . . . Alert Level 1 | . . . . . . . . . . . . . . . . . . . . 1 . . . . . . Unreport Threat 1 | . . . . . . . . . . . . . . . . . . . . . . . . . 1 . Locate Traps 1 | . . . . . . . . . . 1 . . . . . . . . . . . . . . . . Fabricator Hacks 5 | . . . . . 5 . . . . . . . . . . . . . . . . . . . . . Load Schematic 2 | . . . . . 2 . . . . . . . . . . . . . . . . . . . . . Build 3 | . . . . . 3 . . . . . . . . . . . . . . . . . . . . . Repair Station Hacks 13 | . . . . . 2 . . . . 3 . . . . . . . . . 4 . . . . 4 . Scan Component 7 | . . . . . 1 . . . . 2 . . . . . . . . . 2 . . . . 2 . Repair 6 | . . . . . 1 . . . . 1 . . . . . . . . . 2 . . . . 2 . Recycling Unit Hacks . | . . . . . . . . . . . . . . . . . . . . . . . . . . . Scanalyzer 27 | . . 4 . 8 . . . . . . . . . . . . . . . 2 . . . . 13 . Insert Component 12 | . . 2 . 3 . . . . . . . . . . . . . . . 1 . . . . 6 . Analyze 14 | . . 2 . 5 . . . . . . . . . . . . . . . 1 . . . . 6 . Retrieve Study 1 | . . . . . . . . . . . . . . . . . . . . . . . . . 1 . Garrison Access Hacks 2 | . . . . . . . . . . . . . . . 1 . . . . . . . . . 1 . Seal Access 2 | . . . . . . . . . . . . . . . 1 . . . . . . . . . 1 . Unauthorized Hacks 9 | . 2 1 . 3 1 . . . . 1 . . . . . . . . . . . . . . 1 . Terminals 6 | . 2 1 . 3 . . . . . . . . . . . . . . . . . . . . . . Botnet 6 | . 2 1 . 3 . . . . . . . . . . . . . . . . . . . . . . Fabricators 1 | . . . . . 1 . . . . . . . . . . . . . . . . . . . . . Recompile 1 | . . . . . 1 . . . . . . . . . . . . . . . . . . . . . Repair Stations . | . . . . . . . . . . . . . . . . . . . . . . . . . . . Recycling Units . | . . . . . . . . . . . . . . . . . . . . . . . . . . . Scanalyzers . | . . . . . . . . . . . . . . . . . . . . . . . . . . . Garrison Access 2 | . . . . . . . . . . 1 . . . . . . . . . . . . . . 1 . Jam 2 | . . . . . . . . . . 1 . . . . . . . . . . . . . . 1 . Data Cores Recovered 2 | . . . . 1 . . . . . . . . . . . . . . . 1 . . . . . . Used 1 | . . . . . . . . . . . . . . . . . . . . 1 . . . . . . Hacking Detections 35 | . 4 3 . 5 3 . . . . 3 . . . . 4 . . . . 5 . . . . 6 2 Full Trace Events 9 | . 2 . . . 1 . . . . . . . . . 1 . . . . 4 . . . . . 1 Feedback Events . | . . . . . . . . . . . . . . . . . . . . . . . . . . . Feedback Blocked . | . . . . . . . . . . . . . . . . . . . . . . . . . . . Robot Schematics Acquired 8 | . . . . . . . . 4 . . . . 4 . . . . . . . . . . . . . Robots Built . | . . . . . . . . . . . . . . . . . . . . . . . . . . . Authchips . | . . . . . . . . . . . . . . . . . . . . . . . . . . . Time . | . . . . . . . . . . . . . . . . . . . . . . . . . . . Total Robot Build Rating . | . . . . . . . . . . . . . . . . . . . . . . . . . . . Part Schematics Acquired 43 | . 4 3 . 3 . . . 14 . . . . 9 . 1 . . 4 . 1 . . . . 4 . Parts Built 5 | . . . . . 5 . . . . . . . . . . . . . . . . . . . . . Authchips . | . . . . . . . . . . . . . . . . . . . . . . . . . . . Time 125 | . . . . . 125 . . . . . . . . . . . . . . . . . . . . . Total Part Build Rating 23 | . . . . . 23 . . . . . . . . . . . . . . . . . . . . . Part Studies Acquired 1 | . . . . . . . . . . . . . . . . . . . . . . . . . 1 . Parts Repaired 5 | . . . . . 1 . . . . 1 . . . . . . . . . 1 . . . . 2 . Time 173 | . . . . . 22 . . . . 19 . . . . . . . . . 50 . . . . 82 . Parts Recycled . | . . . . . . . . . . . . . . . . . . . . . . . . . . . Recycled Matter . | . . . . . . . . . . . . . . . . . . . . . . . . . . . Retrieved Matter . | . . . . . . . . . . . . . . . . . . . . . . . . . . . Retrieved Components . | . . . . . . . . . . . . . . . . . . . . . . . . . . . Parts Scanalyzed 11 | . . 2 . 3 . . . . . . . . . . . . . . . 1 . . . . 5 . Part Schematics Acquired 8 | . . 1 . 3 . . . . . . . . . . . . . . . . . . . . 4 . Parts Damaged 2 | . . . . . . . . . . . . . . . . . . . . . . . . . 2 . Bothacking | -11 -10 -9 -9 -8 -7 -7 -7 -7 -6 -6 -6 -6 -6 -5 -5 -5 -5 -5 -4 -4 -4 -4 -4 -3 -3 -2 ------------ Run | Yrd Mat Mat Min Mat Fac Low Low Zio Pro Fac Low Low Dat Pro Fac Upp Upp Zhi Pro Fac Upp Upp War Pro Res Res Used RIF Installer . | . . . . . . . . . . . . . . . . . . . . . . . . . . . Robots Hacked 4 | . . . . . . . . . . . . . . . . . . . . . . . . . 4 . Non-combat 3 | . . . . . . . . . . . . . . . . . . . . . . . . . 3 . Combat 1 | . . . . . . . . . . . . . . . . . . . . . . . . . 1 . Robot Hacks Applied 5 | . . . . . . . . . . . . . . . . . . . . . . . . . 5 . parse_system 4 | . . . . . . . . . . . . . . . . . . . . . . . . . 4 . check_alert 1 | . . . . . . . . . . . . . . . . . . . . . . . . . 1 . Relay Couplers Released 8 | . . . . . . . . . . . . . . . . . . . . . . . . . 5 3 Machine Destruction 5 | . . . . . . . . . . . . . . . . . . . . . . . . . 2 3 Programmers 3 | . . . . . . . . . . . . . . . . . . . . . . . . . 3 . Fabnet Peak Effective % . | . . . . . . . . . . . . . . . . . . . . . . . . . . . Robots Rewired 3 | . . . . . . . 1 . . . . . . . . 2 . . . . . . . . . . Allies Hacked . | . . . . . . . . . . . . . . . . . . . . . . . . . . . Hacks Repelled . | . . . . . . . . . . . . . . . . . . . . . . . . . . . Allies | -11 -10 -9 -9 -8 -7 -7 -7 -7 -6 -6 -6 -6 -6 -5 -5 -5 -5 -5 -4 -4 -4 -4 -4 -3 -3 -2 -------- Run | Yrd Mat Mat Min Mat Fac Low Low Zio Pro Fac Low Low Dat Pro Fac Upp Upp Zhi Pro Fac Upp Upp War Pro Res Res Total Allies 7 | . . . 3 . . . 1 . . . . . . 1 . 2 . . . . . . . . . . Largest Group 3 | . . . 3 3 2 . 1 . . . . . . 1 1 3 3 1 1 . . . . . . . Highest-Rated Group 154 | . . . 40 40 24 . 32 . . . . . . 99 99 154 154 95 91 . . . . . . . Highest-Rated Ally 99 | . . . 16 16 16 . 32 . . . . . . 99 99 98 96 95 91 . . . . . . . Total Orders 22 | . . . . . . . . . . 2 . . . . 1 . . . . 10 . . . . 9 . EXPLORE 5 | . . . . . . . . . . . . . . . . . . . . 3 . . . . 2 . RETURN 17 | . . . . . . . . . . 2 . . . . 1 . . . . 7 . . . . 7 . Ally Attacks 150 | . . . . 32 21 . 9 . . . . . . . 22 5 17 . 12 . . . . . 32 . Total Damage 7153 | . . . . 350 195 . 206 . . . . . . . 1236 140 587 . 761 . . . . . 3678 . Kills 53 | . . . . 11 1 . 1 . . . . . . . 11 1 8 . 1 . . . . . 19 . Allies Corrupted . | . . . . . . . . . . . . . . . . . . . . . . . . . . . Allies Melted 4 | . . . . . . . . . . . . . . . . . . . . . . . 1 . . 3 Intel | -11 -10 -9 -9 -8 -7 -7 -7 -7 -6 -6 -6 -6 -6 -5 -5 -5 -5 -5 -4 -4 -4 -4 -4 -3 -3 -2 ------- Run | Yrd Mat Mat Min Mat Fac Low Low Zio Pro Fac Low Low Dat Pro Fac Upp Upp Zhi Pro Fac Upp Upp War Pro Res Res Active Infowar (turns) 23117 | . . 293 . . 607 901 . . . . 604 535 116 923 1012 11297 2406 501 2532 884 228 . . . . 278 Sensors 20942 | . . . . . . . . . . . 604 535 116 923 1012 11297 2406 501 2532 878 138 . . . . . Terrain 13039 | . . 293 . . . . . . . . . . . 156 1012 11297 3 . . . . . . . . 278 Traps 2115 | . . . . . 607 901 . . . . . . . . . . . . . 379 228 . . . . . Cloaking 254 | . . . . . . . . . . . . . . . . . . . . 254 . . . . . . Robot Analysis Total 6 | . 1 . . 1 . . . . . . . . . . . . . 4 . . . . . . . . Derelict Logs Recovered 18 | . . . 1 . . 3 2 3 2 . 1 . . 2 . 1 . . . . 1 2 . . . . Drone Launches 19 | . . . . . . . . . . 2 . . . . 1 . . . . 7 . . . . 9 . Drone Recoveries 18 | . . . . . . . . . . 2 . . . . 1 . . . . 7 . . . . 8 . Exploration | -11 -10 -9 -9 -8 -7 -7 -7 -7 -6 -6 -6 -6 -6 -5 -5 -5 -5 -5 -4 -4 -4 -4 -4 -3 -3 -2 ------------- Run | Yrd Mat Mat Min Mat Fac Low Low Zio Pro Fac Low Low Dat Pro Fac Upp Upp Zhi Pro Fac Upp Upp War Pro Res Res Turns Passed 39024 | 66 285 418 854 498 648 1452 965 1818 1085 1524 604 1161 116 924 1012 11297 2406 501 2593 1314 424 424 1815 631 3117 1072 Spaces Moved 14069 | 56 203 224 419 378 360 907 560 1131 532 671 353 614 78 476 535 651 466 272 1249 530 228 273 954 215 1019 715 Core 988 | 3 . . . . . . . . . . . . . . . 574 87 . . . . . 3 . 25 296 Treads . | . . . . . . . . . . . . . . . . . . . . . . . . . . . Legs . | . . . . . . . . . . . . . . . . . . . . . . . . . . . Wheels 13081 | 53 203 224 419 378 360 907 560 1131 532 671 353 614 78 476 535 77 379 272 1249 530 228 273 951 215 994 419 Hover . | . . . . . . . . . . . . . . . . . . . . . . . . . . . Flight . | . . . . . . . . . . . . . . . . . . . . . . . . . . . Fastest Speed 50 | 50 100 100 105 105 105 145 145 145 155 150 155 150 150 135 135 150 155 155 160 150 150 150 150 275 140 50 Average Speed 244 | 97 110 114 105 105 117 147 150 157 157 163 155 154 150 146 151 1726 501 158 197 173 155 150 171 279 231 112 Slowest Speed 2350 | 100 115 115 115 105 145 160 160 160 230 260 155 170 150 150 165 1950 1900 160 290 220 220 150 2300 290 2350 270 Overloaded Moves . | . . . . . . . . . . . . . . . . . . . . . . . . . . . Propulsion Burnouts . | . . . . . . . . . . . . . . . . . . . . . . . . . . . Robots Hopped . | . . . . . . . . . . . . . . . . . . . . . . . . . . . Potential Cave-ins 4 | . . . . . . . . . . . . . . . . . . . . . . . 2 . 2 . Cave-ins Triggered 2 | . . . . . . . . . . . . . . . . . . . . . 1 . 1 . . . Teleports 1 | . . . . . . . . . . . . . . . . . . . . . . . . . 1 . Exploration Rate (%) 48 | 3 32 25 87 36 7 93 61 83 68 9 62 69 69 55 10 69 58 60 96 8 41 29 91 39 34 21 Regions Visited 26 Branch Regions 17 Pre-discovered Areas 7 | . . . . . . . 1 1 . . . . 1 . . . . 3 . . . 1 . . . . Known Exits Taken 12 | . . . . 1 . . . . . 1 1 1 1 1 1 1 1 1 1 1 . . . . . . Unknown Exits Taken 14 | 1 1 1 1 . 1 1 1 1 1 . . . . . . . . . . . 1 1 1 1 1 . Scrap Searched 25 | . . . . . . 4 2 2 1 . . 1 . 3 . 3 . . 5 . 2 1 . 1 . . Spaces Dug 122 | . 7 . . 11 . . . . . . . . . . . . . . 2 . 42 . 13 11 36 . Terrain Destroyed 968 | . 22 11 . 20 7 43 . . 45 15 10 87 . . . 1 1 . 5 99 90 60 158 61 216 17 Melee 2 | . . . . . . . . . . . . . . . . . . . 2 . . . . . . . Projectile 66 | . . . . . . . . . . . . . . . . . . . . 8 . . 3 . 39 16 AOE 888 | . 22 11 . 20 7 43 . . 45 15 10 87 . . . . 1 . . 84 90 60 155 61 177 . Terrain Rammed . | . . . . . . . . . . . . . . . . . . . . . . . . . . . Walls Destroyed . | . . . . . . . . . . . . . . . . . . . . . . . . . . . Machines Disabled . | . . . . . . . . . . . . . . . . . . . . . . . . . . . Actions | -11 -10 -9 -9 -8 -7 -7 -7 -7 -6 -6 -6 -6 -6 -5 -5 -5 -5 -5 -4 -4 -4 -4 -4 -3 -3 -2 --------- Run | Yrd Mat Mat Min Mat Fac Low Low Zio Pro Fac Low Low Dat Pro Fac Upp Upp Zhi Pro Fac Upp Upp War Pro Res Res Total 17531 | 64 256 308 822 430 519 965 678 1169 738 973 392 764 77 700 691 696 512 329 1332 783 264 284 1103 232 1557 893 Wait 1717 | 1 45 10 392 4 76 4 58 11 152 102 23 97 . 213 56 7 17 25 9 70 . 1 34 4 233 73 Move 14043 | 55 202 223 418 377 359 906 559 1130 531 670 352 613 77 475 534 650 465 271 1248 529 227 272 953 214 1018 715 Hop . | . . . . . . . . . . . . . . . . . . . . . . . . . . . Pick Up 217 | 2 2 15 2 4 8 14 4 11 6 20 1 4 . 5 17 4 2 3 10 22 3 4 17 . 28 9 Fast Attach 132 | 6 1 7 . 3 6 . 3 . 1 8 . 1 . . 11 . 2 5 6 5 1 . 18 . 24 24 Attach 116 | . . . . 2 3 4 . 1 7 12 1 7 . 2 5 . 2 1 4 15 6 1 9 4 22 8 Detach 14 | . . . . . . . . . . 1 . 1 . . 2 . . 1 . . . . 2 2 4 1 Swap 133 | . 1 3 1 6 14 5 2 3 4 11 2 4 . 5 6 3 3 1 10 20 1 . 11 . 13 4 Drop 209 | . . 9 3 8 14 . 12 9 2 24 1 1 . . 24 5 . 8 12 8 3 2 31 . 27 6 Fire 748 | . 5 41 6 26 37 32 4 4 31 71 12 36 . . 36 19 21 14 30 79 23 4 28 8 141 40 Melee 13 | . . . . . . . . . . . . . . . . 2 . . 2 . . . . . 5 4 Ram 10 | . . . . . . . . . . . . . . . . . . . . . . . . . 1 9 Kick . | . . . . . . . . . . . . . . . . . . . . . . . . . . . Crush . | . . . . . . . . . . . . . . . . . . . . . . . . . . . Escape Stasis . | . . . . . . . . . . . . . . . . . . . . . . . . . . . Rewire 8 | . . . . . . . 2 . . . . . . . . 6 . . . . . . . . . . Trap 171 | . . . . . 2 . 34 . 4 54 . . . . . . . . 1 35 . . . . 41 . Miscellaneous . | . . . . . . . . . . . . . . . . . . . . . . . . . . . Route ------- -11/Scrapyard -10/Materials -9/Materials -9/Mines (discovered 3 exits: *Mat x2 / [*Zio]) -8/Materials (discovered 3 exits: *Fac x3) -7/Factory -7/Lower Caves -7/Lower Caves -7/Zion -6/Proximity Caves -6/Factory (discovered 6 exits: Fac x4 / *Low x2) -6/Lower Caves -6/Lower Caves -6/Data Miner -5/Proximity Caves -5/Factory (discovered 4 exits: *Upp x2 / Ext x2) -5/Upper Caves -5/Upper Caves (discovered 2 exits: *Fac / *Zhi) -5/Zhirov -4/Proximity Caves -4/Factory -4/Upper Caves -4/Upper Caves -4/Warlord -3/Proximity Caves -3/Research -2/Research (discovered 1 exit: [*Acc]) History --------- Turn | Location | Event 4 | -11/Scrapyard | Discovered new exit (range 16) 67 | -11/Scrapyard | Entered Materials 238 | -10/Materials | Discovered new exit (range 14) 313 | -10/Materials | Build established: Mutant 352 | -10/Materials | Entered another Materials area 352 | -9/Materials | Evolved 2 slots: Utility x2 663 | -9/Materials | Central database locked down 703 | -9/Materials | Discovered new exit (range 13) 770 | -9/Materials | Entered Mines 802 | -9/Mines | Learned 2 Materials zone layouts 836 | -9/Mines | Assembled infested the area 841 | -9/Mines | Assisted by a Guerilla fighting off Assembled 1379 | -9/Mines | Found a hidden stash of uninstalled traps 1397 | -9/Mines | A Derelict revealed a hidden shortcut to a safe place 1543 | -9/Mines | Discovered new exit (range 12) 1561 | -9/Mines | Assisted by bots powering up and referring to "LRC-V3" 1612 | -9/Mines | Discovered new exit (range 4) 1624 | -9/Mines | Entered Materials 1624 | -8/Materials | Accompanied by 3 allies 1624 | -8/Materials | Evolved 2 slots: Utility x2 1625 | -8/Materials | Identified exit to Factory 1660 | -8/Materials | Central database locked down 2122 | -8/Materials | Entered Factory 2122 | -7/Factory | Accompanied by 2 allies 2122 | -7/Factory | Evolved 2 slots: Utility x2 2382 | -7/Factory | Fabricated Coolant Injector (x2) 2463 | -7/Factory | Build established: Scavenger-Mutant 2552 | -7/Factory | Repaired Imp. Medium Armor Plating 2625 | -7/Factory | Discovered new exit (range 13) 2658 | -7/Factory | Fabricated Adv. Target Analyzer? 2706 | -7/Factory | Fabricated Huge Storage Unit (x1) 2770 | -7/Factory | Entered Lower Caves 2806 | -7/Lower Caves | Learned 8 Factory zone layouts 2859 | -7/Lower Caves | Attracted the attention of an 0b10 outpost 2935 | -7/Lower Caves | Destroyed 7 combat bots 2965 | -7/Lower Caves | Build established: Mutant 3180 | -7/Lower Caves | Attracted the attention of an 0b10 checkpoint 4064 | -7/Lower Caves | Discovered new exit (range 15) 4074 | -7/Lower Caves | Learned location of 1 exit from Factory 4162 | -7/Lower Caves | Entered a destroyed Warlord outpost 4222 | -7/Lower Caves | Entered another Lower Caves area 4260 | -7/Lower Caves | Entered an active Warlord outpost 4312 | -7/Lower Caves | Build established: Trapper-Mutant 4320 | -7/Lower Caves | Learned Research trap positions 4320 | -7/Lower Caves | Learned Research stockpile data 4320 | -7/Lower Caves | Learned Factory stockpile data 4546 | -7/Lower Caves | Found Prototype Device 4634 | -7/Lower Caves | Learned location of Extension (-5) 4809 | -7/Lower Caves | Attracted the attention of an 0b10 checkpoint 5087 | -7/Lower Caves | Build established: Mutant 5177 | -7/Lower Caves | Discovered new exit (range 6) 5187 | -7/Lower Caves | Entered Zion 5323 | -7/Zion | Found CR-A16's Pointy Stick 5332 | -7/Zion | Discovered new exit (range 14) 5646 | -7/Zion | Found GAL Module 5685 | -7/Zion | Learned location of Storage (-7) 5823 | -7/Zion | Acquired unknown access codes intercepted by a Zionite 6004 | -7/Zion | Given the Hacking Drone Bay 6004 | -7/Zion | Found Prototype Device 6357 | -7/Zion | Identified Heart of Steel 6660 | -7/Zion | Found Prototype Device 6668 | -7/Zion | Identified Phasing AFG 6772 | -7/Zion | Found Prototype Special Weapon 6775 | -7/Zion | Found Prototype Special Weapon 6778 | -7/Zion | Found Prototype Special Weapon 6780 | -7/Zion | Found Prototype Special Weapon 6797 | -7/Zion | Identified RU-N14's Throwing Claymores (x4) 7005 | -7/Zion | Entered Proximity Caves 7357 | -6/Proximity Caves | Learned 8 Factory zone layouts 7561 | -6/Proximity Caves | Core integrity fell below 50% 7598 | -6/Proximity Caves | Lost 3 parts (1n2w) 7657 | -6/Proximity Caves | Build established: Scavenger-Mutant 7677 | -6/Proximity Caves | Learned Factory garrison access intel 7869 | -6/Proximity Caves | Acquired the password to a Derelict Tinkerer's latest research 7884 | -6/Proximity Caves | Found Prototype Special Weapon 7901 | -6/Proximity Caves | Discovered new exit (range 14) 8085 | -6/Proximity Caves | Identified Molecular Deconstructor 8090 | -6/Proximity Caves | Entered Factory 8090 | -6/Factory | Evolved 2 slots: Utility x2 8091 | -6/Factory | Identified exit to Factory 8094 | -6/Factory | Loaded intel: 4 garrison access locations 8415 | -6/Factory | Build established: Mutant 8555 | -6/Factory | Identified Hacking Drone Bay 8563 | -6/Factory | Identified exit to Lower Caves 8596 | -6/Factory | Repaired Shock Rifle 9614 | -6/Factory | Entered Lower Caves 10105 | -6/Lower Caves | Discovered new exit (range 16) 10111 | -6/Lower Caves | Attracted the attention of an 0b10 checkpoint 10156 | -6/Lower Caves | Identified exit to Lower Caves 10218 | -6/Lower Caves | Entered another Lower Caves area 10256 | -6/Lower Caves | Ambushed by wild Derelicts 10786 | -6/Lower Caves | Attracted the attention of an 0b10 checkpoint 10930 | -6/Lower Caves | Lost 4 parts (2n1u1w) 11144 | -6/Lower Caves | Spotted B-75 Beast 11343 | -6/Lower Caves | Discovered new exit (range 7) 11376 | -6/Lower Caves | Identified exit to Data Miner 11379 | -6/Lower Caves | Entered Data Miner 11379 | -6/Data Miner | Discovered new exit (range 6) 11408 | -6/Data Miner | Met Data Miner 11447 | -6/Data Miner | Learned location of Section 7 (-2) 11447 | -6/Data Miner | Acquired the access code to Warlord's prototype stash 11460 | -6/Data Miner | Received God Mode back door access code from Data Miner 11493 | -6/Data Miner | Identified exit to Proximity Caves 11495 | -6/Data Miner | Entered Proximity Caves 11517 | -5/Proximity Caves | Learned Factory stockpile data 11715 | -5/Proximity Caves | Received a Behemoth hack from an annoying Tinkerer 12208 | -5/Proximity Caves | Learned Factory emergency access door positions 12251 | -5/Proximity Caves | Discovered exit to Factory (range 7) 12261 | -5/Proximity Caves | Heart of Steel transformed into Warbot 12267 | -5/Proximity Caves | System corruption reached 10% 12419 | -5/Proximity Caves | Entered Factory 12419 | -5/Factory | Accompanied by 1 ally (Warbot) 12419 | -5/Factory | Evolved 2 slots: Utility x2 12420 | -5/Factory | Identified exit to Upper Caves 12420 | -5/Factory | Identified exit to Extension 12730 | -5/Factory | Build established: Skirmisher 12902 | -5/Factory | Found Prototype Launcher 12902 | -5/Factory | Identified Mni. Smartbomb Launcher 12915 | -5/Factory | Found Mni. Smartbomb Launcher 13431 | -5/Factory | Entered Upper Caves 13431 | -5/Upper Caves | Accompanied by 1 ally (Warbot) 13432 | -5/Upper Caves | Identified exit to Upper Caves 22354 | -5/Upper Caves | Build established: Assassin 22771 | -5/Upper Caves | Learned location of 1 exit from Factory 23285 | -5/Upper Caves | Encountered a Warlord checkpoint 24728 | -5/Upper Caves | Entered another Upper Caves area 24728 | -5/Upper Caves | Accompanied by 3 allies (Warbot) 25022 | -5/Upper Caves | Build established: Mutant 26458 | -5/Upper Caves | Discovered new exit (range 14) 26960 | -5/Upper Caves | Discovered new exit (range 10) 26973 | -5/Upper Caves | Identified exit to Zhirov 27134 | -5/Upper Caves | Entered Zhirov 27134 | -5/Zhirov | Accompanied by 1 ally (Warbot) 27134 | -5/Zhirov | Discovered new exit (range 3) 27162 | -5/Zhirov | Met Zhirov 27190 | -5/Zhirov | Learned location of Testing (-2) 27190 | -5/Zhirov | Learned location of Quarantine (-3) 27190 | -5/Zhirov | Learned location of Command (-1) 27206 | -5/Zhirov | Zhirov requested help retrieving the SGEMP Prototype 27244 | -5/Zhirov | Found Alien Artifact 27244 | -5/Zhirov | Identified Integrated Reactor 27244 | -5/Zhirov | Installed Integrated Reactor, increased core energy generation (+10) 27535 | -5/Zhirov | Found Alien Artifact 27633 | -5/Zhirov | Identified exit to Proximity Caves 27635 | -5/Zhirov | Entered Proximity Caves 27635 | -4/Proximity Caves | Accompanied by 1 ally (Warbot) 27637 | -4/Proximity Caves | Attracted the attention of an 0b10 checkpoint 27746 | -4/Proximity Caves | Spotted B-86 Titan 27914 | -4/Proximity Caves | Found Alien Artifact 27914 | -4/Proximity Caves | Identified Core Expander 27914 | -4/Proximity Caves | Installed Core Expander, added new Utility slot 28127 | -4/Proximity Caves | Destroyed B-86 Titan 28626 | -4/Proximity Caves | Build established: Scavenger-Mutant 29075 | -4/Proximity Caves | Build established: Mutant 29132 | -4/Proximity Caves | Discovered new exit (range 13) 30226 | -4/Proximity Caves | Identified exit to Factory 30228 | -4/Proximity Caves | Entered Factory 30228 | -4/Factory | Evolved 2 slots: Utility x2 30229 | -4/Factory | Identified exit to Upper Caves 30793 | -4/Factory | Garrison activated, responded to threat 30821 | -4/Factory | Destroyed 12 combat bots 30828 | -4/Factory | Lost 4 parts (3u1w) 30934 | -4/Factory | Lost 3 parts (3u) 31184 | -4/Factory | Incoming investigation squad redirected 31210 | -4/Factory | Repaired Hyp. Coil Gun 31367 | -4/Factory | Build established: Scavenger-Mutant 31435 | -4/Factory | Lost 5 parts (1n4u) 31542 | -4/Factory | Entered Upper Caves 31544 | -4/Upper Caves | Attracted the attention of an 0b10 checkpoint 31669 | -4/Upper Caves | Spotted B-86 Titan 31688 | -4/Upper Caves | Destroyed B-86 Titan 31752 | -4/Upper Caves | Attracted the attention of an 0b10 outpost 31771 | -4/Upper Caves | System corruption reached 10% 31775 | -4/Upper Caves | Crushed by falling debris 31793 | -4/Upper Caves | Destroyed 11 combat bots 31806 | -4/Upper Caves | Lost 10 parts (2n7u1w) 31926 | -4/Upper Caves | Learned Research terminal intel 31956 | -4/Upper Caves | Discovered new exit (range 8) 31966 | -4/Upper Caves | Entered another Upper Caves area 32027 | -4/Upper Caves | Build established: Mutant 32312 | -4/Upper Caves | Discovered new exit (range 8) 32335 | -4/Upper Caves | Learned Research stockpile data 32390 | -4/Upper Caves | Entered Warlord 32440 | -4/Warlord | System corruption cleaned by Quarantine Array 32453 | -4/Warlord | System corruption cleaned by Quarantine Array 32698 | -4/Warlord | Found Prototype Special Weapon 32701 | -4/Warlord | Found Prototype Special Weapon 32707 | -4/Warlord | Found Prototype Special Weapon 32710 | -4/Warlord | Found Prototype Special Weapon 32714 | -4/Warlord | Found Prototype Special Weapon 32720 | -4/Warlord | Found Prototype Special Weapon 32724 | -4/Warlord | Identified RU-N14's Throwing Claymores v3 (x6) 32894 | -4/Warlord | Opened Warlord's prototype stash 32900 | -4/Warlord | Found Prototype Device 32900 | -4/Warlord | Identified Thermal Barrier 32904 | -4/Warlord | Found Prototype Processor 32904 | -4/Warlord | Identified Exp. Armor Integrity Analyzer 32910 | -4/Warlord | Found Prototype Hackware 32910 | -4/Warlord | Identified System Mapper 32919 | -4/Warlord | Found Prototype Device 32919 | -4/Warlord | Identified Exp. Phase Shifter 32930 | -4/Warlord | Found Prototype Reactor 33211 | -4/Warlord | Build established: Hacker-Mutant 33226 | -4/Warlord | Warlord's base attacked by MAIN.C 33340 | -4/Warlord | Found Prototype Launcher 33427 | -4/Warlord | Met Warlord 33576 | -4/Warlord | Warlord forces counterattacked 33627 | -4/Warlord | Lost 3 allies 33643 | -4/Warlord | Spotted Striker 33652 | -4/Warlord | Spotted Executioner 33659 | -4/Warlord | Spotted Executioner 33664 | -4/Warlord | Spotted Executioner 33672 | -4/Warlord | Destroyed Executioner 33704 | -4/Warlord | Lost 3 parts (2n1u) 33705 | -4/Warlord | Destroyed 19 combat bots 33711 | -4/Warlord | Lost 15 allies 33753 | -4/Warlord | Spotted Striker 33815 | -4/Warlord | Lost 7 allies 33884 | -4/Warlord | Lost 3 allies 33901 | -4/Warlord | Warlord base infiltrated, sounded retreat 33906 | -4/Warlord | Spotted Striker 33939 | -4/Warlord | Lost 5 allies 33944 | -4/Warlord | Found Prototype Device 33964 | -4/Warlord | Build established: Trapper-Mutant 34087 | -4/Warlord | Found Prototype Launcher 34094 | -4/Warlord | Found Prototype Device 34094 | -4/Warlord | Identified Exp. Shock Absorption System 34134 | -4/Warlord | Spotted Executioner 34136 | -4/Warlord | Discovered new exit (range 14) 34136 | -4/Warlord | Spotted Executioner 34139 | -4/Warlord | Core integrity fell below 50% 34142 | -4/Warlord | Destroyed Executioner 34153 | -4/Warlord | Destroyed Executioner 34168 | -4/Warlord | Lost 6 allies 34176 | -4/Warlord | Destroyed 18 combat bots 34193 | -4/Warlord | Identified Chain Missile Launcher 34199 | -4/Warlord | Crushed by falling debris 34205 | -4/Warlord | Entered Proximity Caves 34267 | -3/Proximity Caves | Spotter reported a threat 34269 | -3/Proximity Caves | Spotter reported a threat 34330 | -3/Proximity Caves | Spotter reported a threat 34482 | -3/Proximity Caves | Build established: Scavenger-Mutant 34792 | -3/Proximity Caves | Discovered new exit (range 10) 34836 | -3/Proximity Caves | Entered Research 34836 | -3/Research | Evolved 2 slots: Utility x2 34837 | -3/Research | Loaded intel: 83 trap records 34839 | -3/Research | Loaded intel: 21 terminal locations 35086 | -3/Research | Search patrols dispatched 35128 | -3/Research | Lost 3 parts (1p2u) 35154 | -3/Research | Build established: Hacker-Mutant 35336 | -3/Research | Search patrols dispatched 35603 | -3/Research | Identified Wardrone Bay 36146 | -3/Research | Repaired Adv. Trap Extractor 36212 | -3/Research | Repaired Centrium Light Armor Plating 36586 | -3/Research | First assault squad dispatched 36599 | -3/Research | System corruption reached 10% 36603 | -3/Research | Incoming assault squad redirected 36613 | -3/Research | Incoming assault squad redirected 36853 | -3/Research | Found Unknown Device 36853 | -3/Research | Identified Quantum Capacitor 37113 | -3/Research | Incoming assault squad redirected 37117 | -3/Research | Incoming investigation squad redirected 37133 | -3/Research | Found Prototype Device 37133 | -3/Research | Identified Exp. Thermal Shield 37363 | -3/Research | Incoming assault squad redirected 37419 | -3/Research | Lost 3 parts (3u) 37674 | -3/Research | Identified Transdimensional Reconstructor 37674 | -3/Research | Warped through subspace 37702 | -3/Research | Build established: Scavenger-Mutant 37786 | -3/Research | Identified Vortex Catalyst Activator 37805 | -3/Research | Incoming assault squad redirected 37808 | -3/Research | Incoming assault squad redirected 37823 | -3/Research | Destroyed 7 combat bots 37827 | -3/Research | Core integrity fell below 50% 37855 | -3/Research | Incoming assault squad redirected 37888 | -3/Research | Core integrity fell below 20% 37920 | -3/Research | Lost 16 parts (2p2n9u3w) 37933 | -3/Research | Discovered new exit (range 10) 37953 | -3/Research | Entered another Research area 37953 | -2/Research | Warlord forces began assault on 0b10 37953 | -2/Research | Evolved 2 slots: Utility x2 38063 | -2/Research | Research machine network offline 38319 | -2/Research | Borebot progress halted 38354 | -2/Research | Lost 3 parts (2u1w) 38355 | -2/Research | Spotted Striker 38364 | -2/Research | Spotted Striker 38386 | -2/Research | Borebot progress halted 38399 | -2/Research | Released all parts (5) 38416 | -2/Research | Spotted Executioner 38421 | -2/Research | Spotted Executioner 38428 | -2/Research | Lost 6 parts (2n2u2w) 38466 | -2/Research | Lost 3 allies 38470 | -2/Research | Core integrity fell below 50% 38535 | -2/Research | Core integrity fell below 20% 38542 | -2/Research | Discovered new exit (range 7) 38624 | -2/Research | Lost 8 allies 38677 | -2/Research | Spotted Striker 38756 | -2/Research | Lost 3 parts (1p1n1u) 38990 | -2/Research | Spotted Executioner 38990 | -2/Research | Spotted Executioner 39025 | -2/Research | Destroyed by Executioner with Helical Railgun Last Messages --------------- 39000_ Lrn. Terrain Scanner destroyed. 39000_ Identified Shock Maul. 39001_ S-43 Plague knocked back. 39003_ Hrd. Medium Armor Plating destroyed. 39007_ Destroyed Xenon Bombardment Thruster. 39007_ S-43 Plague system corrupted by crushing effect. 39008_ S-43 Plague system terminally corrupted. 39008_ Xenon Bombardment Thruster fried. 39010_ Acquired 16 matter. 39014_ Lyr. Medium Armor Plating destroyed. 39015_ S-43 Plague suffers critical hit (Smash). 39015_ Destroyed Xenon Bombardment Thruster. 39015_ S-43 Plague system corrupted by crushing effect. 39016_ S-43 Plague system terminally corrupted. 39016_ Hvy. Machine Gun fried. 39021_ Acquired 10 matter. 39024_ S-43 Plague Hvy. Machine Gun blasted off. 39024_ S-43 Plague destroyed. 39025_ Acquired 16 matter. 39025_ Penetrated by Slug. Map ----- +----------------------------------------------------+ | +### # ! "### # # *#### #######" " ??? | | ## ## %!+ + # %## # ######"" #### ??## | | ## ## %% "+"#+## # ## # # " # ??##? | | ## +%% # !#*[ # # # # ? ??? | | ## "" % " =/%* %=# + + ???? | | ## ""##### [#%[ " # # ??#?? | | ## "###?## ! # [ " " # ????? | | ## "############ # !%[ " # # ?#?? | | % ## #### # = ######## ####?????? | | + + # % %%% ######## # ?? | | ########## # # ????? | | ########## # # ####+##### # ??? | | ########## # # % ## ## # ???? | | ##########!!! # !# %## ## # ?? | | #####!! #####"#" %## ## # ???? | | =" #####!! #### ### ## = ## ####+##### | | %<% ##### ### #### # ## ## ? | | "%" ########### ##### [#=##### ## ## #?? | | " ###?############# #%=# ########## ## ### | | # ################### ;/%%########### ## # ? | | #=%=###################;;=###?######### ## # ? | | #!%!#* ##########%==############ # ? | | #===# # % * *=% %/* #?? | | #!%*" # ########%s*########### + ? | | #!|%" !! " # #########E############ #?? | | #**=%= ! / # ###?### [@% ######### ##? | | #[%!+%[! ! ! " " ##### !#######?# ###?? | | #[%%!! !" " #### % ######### # ? | | # !!# = " ####### ######### # ?? | | # %=###########+#"##### ## # # ?? | | #|*%#?#?### ### ## # # ?? | | #!%*##?#### #####;#####!! # # ??? | | # = ####### # #########!! # + ?? | | ####### ! #########! # ##??? | | #"+############## ####### " # "##?? | | ? ####### ##"""""##"+] % ##?? | | ? ####### #%! % % % =%! | | " ? ####### "" % "!""#""""# ="# | | " ? ####### ""F " ########%#######+####? | | " ??? ####### "" |=#?####?#+#?###? ????? | | ?? ##?#### %###? ? ?#??????? | | ! ? ? ?###?## *#### ?? ##??????? | | % ? ???###### "" / ? ??????#? ?????? | | ###??????#?### """ % #### ? ?##??????? | | ??????? ??#### """ "" # ####?##?####?????????? | | ??!???????#### # ##########??##???????? | | ??????? ??#### " " # #######?###??????????? | | ??????????#########"""#""## ########??#??????????? | | ??????????# * % ##???#??????????????? | | ?????? + % ###?????????????????? | +----------------------------------------------------+ Best States ------------- Heat Dissipation 158 Coolant Potential 65 Energy Generation 41 Energy Capacity 840 Matter Stores 1003 Matter Capacity 1800 Sight Range 16 Robot Scan Range 16 Terrain Scan Range 24 Terrain Scan Density 210 Cloak Strength 3 Power Amplification 30 Base Temperature (-) 200 Corruption Containment 12 Corruption Block 20 Armor Coverage 1050 Resistance: KI 30 Resistance: TH 50 Resistance: EX 75 Power Shielding 90 Propulsion Shielding 66 Weapon Cycling 30 Phase Shifting 20 Evasion (%) 60 Targeting Accuracy 16 Launcher Accuracy 40 Target Analysis 12 Core Analysis 6 Armor Integrity Analysis 50 Matter Filtering 50 Offensive Hacking 34 Defensive Hacking 10 Authchip Count 1 Trap Extractor Capacity 8 Item Schematics ----------------- Huge Storage Unit | -10/Materials | Hacked Ion Engine | -10/Materials | Hacked EM Pulse Gun | -10/Materials | Hacked Targeting Computer | -10/Materials | Hacked Heat Sink | -9/Materials | Hacked Lgt. Armor Plating | -9/Materials | Hacked Wheel | -9/Materials | Scanalyzed Adv. Beam Rifle | -8/Materials | Scanalyzed Shock Rifle | -8/Materials | Scanalyzed Imp. Medium Laser | -8/Materials | Scanalyzed Imp. Trap Scanner | -7/Zion | Archive Gauss Cannon | -7/Zion | Archive Proton Missile Launcher | -7/Zion | Archive Imp. Reaction Control System | -7/Zion | Archive Imp. Transmission Jammer | -7/Zion | Archive Imp. Shield Generator | -7/Zion | Archive Imp. Thermal Generator | -7/Zion | Archive Imp. Salvage Targeting Computer | -7/Zion | Archive Arm. Leg | -7/Zion | Archive Imp. EM Pulse Cannon | -7/Zion | Archive Hvy. Rocket Launcher | -7/Zion | Archive Flexi-carbon Leg | -7/Zion | Archive Matter Filter | -7/Zion | Archive Point Defense System | -7/Zion | Archive Combat Drone Bay | -6/Data Miner | Free Lgt. Regenerative Plating | -6/Data Miner | Free Cld. Nuclear Pulse Thruster | -6/Data Miner | Free Imp. Thermal Defense Suite | -6/Data Miner | Free Thunder Hammer | -6/Data Miner | Free Impulse Thruster | -6/Data Miner | Free Imp. System Guard | -6/Data Miner | Free Matter Neutralizer | -6/Data Miner | Free Lgt. Antimatter Reactor | -6/Data Miner | Free Arm. Huge Wheel | -5/Factory | Hacked Assault Drone Bay | -5/Zhirov | Free Exp. Heat Sink | -5/Zhirov | Free Exp. Optical Array | -5/Zhirov | Free Imp. Arc Thrower | -5/Zhirov | Free Centrium Wheel | -4/Factory | Hacked Hyp. Railgun | -3/Research | Scanalyzed Hyp. Mass Driver | -3/Research | Scanalyzed Coolant Network | -3/Research | Scanalyzed Centrium Light Armor Plating | -3/Research | Scanalyzed Robot Schematics ------------------ T-07 Excavator | -7/Zion | Archive L-31 Rogue | -7/Zion | Archive L-41 Fighter | -7/Zion | Archive C-57 Dissector | -7/Zion | Archive S-27 Virus | -6/Data Miner | Free R-10 Processor | -6/Data Miner | Free Y-64 Sentinel | -6/Data Miner | Free G-50 Soldier | -6/Data Miner | Free Fabricated ------------ Coolant Injector | x2 | -7/Factory | Preloaded Adv. Target Analyzer | x2 | -7/Factory | Preloaded Huge Storage Unit | x1 | -7/Factory Repaired ---------- Imp. Medium Armor Plating | 46% | -7/Factory Shock Rifle | 23% | -6/Factory Hyp. Coil Gun | 9% | -4/Factory Adv. Trap Extractor | 33% | -3/Research Centrium Light Armor Plating | 34% | -3/Research Studied --------- Centrium Wheel | -3/Research | Hacked Alien Tech Used ----------------- Integrated Reactor Core Expander Transdimensional Reconstructor Achievements -------------- Chop Chop Deadly Precision Minesweeper Challenges ------------ None Game ------ Seed ImprinterHackingDiverter Manual? 0 Play Time 04:16:33 Cumulative 304.7 hours Start 2025.11.19 @ 20:30:10 End 2025.11.20 @ 08:47:57 Sessions 3 Manual Loads 0 Difficulty Rogue Special Mode None Game No. 319 Rogue 315 Adventurer 3 Explorer 1 Win Type - Total 2 Types 2/0/0/0/0/0/0/0/0/0 Lore% 79 Gallery% 77 Achievement% 63 Wizard Run 0 Options --------- Layout 0 ASCII 0 Keyboard 0 Movement Mouse Keybinds 0 Fullscreen 2 Font 18/SmallcapsGlow Map View 76x50 Zoom Use 0% Tactical HUD 1 Map Filters NONE Filters NONE Steam 1 RUN: 9c288350-e866-4356-80bd-6ea6511b5d30